Workbook

Sheet Algus
B1: TEAVE SELLE MALLI KOHTA
B2: Selle sündmuse eelarve töövihiku abil saate jälgida sündmusega seotud kulusid ja sellelt teenitud tulu.
B3: Täitke väli Sündmuse nimi ja sisestage üksikasjad töölehe Kulud ja töölehe Tulud tabelitesse.
B4: Kogukulud ja kogutulu arvutatakse automaatselt.
B5: Kasumi ja kahjumi kokkuvõtet ja diagrammi uuendatakse automaatselt töölehel Kasumi ja kahjumi kokkuvõte.
B6: Märkus.
B7: Iga töölehe veerus A on toodud lisajuhised. See tekst on tahtlikult peidetud. Teksti eemaldamiseks valige veerg A ja seejärel käsk KUSTUTA.
B8: Tabelite kohta lisateabe saamiseks vajutage tabelis tõstuklahvi (SHIFT) ja seejärel klahvi F10, valige suvand TABEL ja seejärel käsk ASETEKST.

Sheet Kulud
A1: Sisestage iga kategooria prognoositud ja tegelikud kulud selle töölehe vastavatesse tabelitesse ning sündmuse nimi lahtrisse D1, et kohandada selle ja muude töölehtede pealkirja. Lahtris H1 kuvatakse selle töölehe alapealkiri. Töölehe kasutamise kohta käivad kasulikud juhised leiate selle veeru lahtritest. Järgmine juhis on lahtris A3. | B1: Sündmuse eelarve | C1: Sündmuse nimi | H1: KULUD
A3: Kogukulude silt on parempoolses lahtris, prognoositud kulude silt lahtris G3 ja tegelike kulude silt lahtris H3. | B3: KULUD KOKKU | G3: Prognoos | H3: Tegelik
A4: Prognoositud kogukulude silt on lahtris G4 ja automaatselt arvutatud tegelike kogukulude silt on lahtris H4. Järgmine juhis on lahtris A6. | G4: =SUM(C11,C19,C25,C32,G11,G19,G24) -> 882.00 € | H4: =SUM(D11,D19,D25,D32,H11,H19,H24) -> 302.00 €
A6: Sisestage tegevuskoha kulud parempoolsest lahtrist algavasse tabelisse ja jookide kulud lahtrist F6 algavasse tabelisse. Järgmised juhised on toodud lahtris A13. | B6: Toimumiskoht | C6: Prognoos | D6: Tegelik | F6: Joogid ja suupisted | G6: Prognoos | H6: Tegelik
B7: Ruumi rent | C7: 500.00 € | F7: Söök
B8: Palgatud personal | F8: Joogid | G8: 20.00 €
B9: Varustus | F9: Laudlinad | H9: 20.00 €
B10: Lauad ja toolid | F10: Personal ja lisatasud
B11: Kokku | C11: =SUBTOTAL(109,KohaKulud[Prognoos]) -> 500.00 € | D11: =SUBTOTAL(103,KohaKulud[Tegelik]) -> 0.00 € | F11: Kokku | G11: =SUBTOTAL(109,SuupisteteKulud[Prognoos]) -> 20.00 € | H11: =SUBTOTAL(103,SuupisteteKulud[Tegelik]) -> 1.00 €
A13: Sisestage tabelisse kaunistustekulud, alustades parempoolsest lahtrist ja programmikulud, alustades lahtrist F13. Järgmised juhised on toodud lahtris A21. | B13: Kaunistused | C13: Prognoos | D13: Tegelik | F13: Programm | G13: Prognoos | H13: Tegelik
B14: Lilled | C14: 200.00 € | D14: 300.00 € | F14: Esinejad
B15: Küünlad | F15: Õhtujuht | G15: 30.00 €
B16: Valgustus | F16: Reisimine
B17: Õhupallid | F17: Hotell
B18: Ühekordseks kasutamiseks mõeldud tarvikud | F18: Muu
B19: Kokku | C19: =SUBTOTAL(109,KaunistusteKulud[Prognoos]) -> 200.00 € | D19: =SUBTOTAL(109,KaunistusteKulud[Tegelik]) -> 300.00 € | F19: Kokku | G19: =SUBTOTAL(109,VoldikuKulud[Prognoos]) -> 30.00 € | H19: =SUBTOTAL(103,VoldikuKulud[Tegelik]) -> 0.00 €
A21: Sisestage ettevalmistuskulud parempoolsest lahtrist algavasse tabelisse ja hinnad lahtrist F21 algavasse tabelisse. Järgmised juhised on toodud lahtris A27. | B21: Ettevalmistused | C21: Prognoos | D21: Tegelik | F21: Hinnad | G21: Prognoos | H21: Tegelik
B22: Kutsete kujundamine | F22: Lindid/plakatid
B23: Pildistamisteenus / fotode ilmutamine | C23: 20.00 € | F23: Kingitused | G23: 100.00 €
B24: Postikulu | F24: Kokku | G24: =SUBTOTAL(109,Auhinnakulud[Prognoos]) -> 100.00 € | H24: =SUBTOTAL(103,Auhinnakulud[Tegelik]) -> 0.00 €
B25: Kokku | C25: =SUBTOTAL(109,Reklaamikulud[Prognoos]) -> 20.00 € | D25: =SUBTOTAL(103,Reklaamikulud[Tegelik]) -> 0.00 €
A27: Sisestage muud kulud parempoolsest lahtrist algavasse tabelisse. | B27: Muud kulud | C27: Prognoos | D27: Tegelik
B28: Telefon | D28: 13.00 €
B29: Transport | C29: 12.00 €
B30: Kirjatarbed
B31: Faksiteenused
B32: Kokku | C32: =SUBTOTAL(109,MuudKulud[Prognoos]) -> 12.00 € | D32: =SUBTOTAL(103,MuudKulud[Tegelik]) -> 1.00 €

Sheet Sissetulekud
A1: Sisestage selle töölehe vastavatesse tabelitesse eri kategooriate lõikes prognoositav ja tegelik tulu. Paremal asuvas lahtris olevat töölehe pealkirja värskendatakse automaatselt. Lahtris G1 on alapealkiri. Töölehe kasutamise kohta käivad kasulikud juhised leiate selle veeru lahtritest. Järgmine juhis on lahtris A3. | B1: =Kulud!B1 -> Sündmuse eelarve | D1: =Kulud!C1 -> Sündmuse nimi | G1: SISSETULEKUD
A3: Kogutulu silt on parempoolses lahtris, prognoositud tulude silt lahtris F3 ja tegelike tulude silt lahtris G3. | B3: Sissetulekud kokku | F3: Prognoos | G3: Tegelik
A4: Automaatselt arvutatud prognoositud kogutulu silt on lahtris F4 ja tegeliku kogutulu silt on lahtris G4. | F4: =SUM(Piletid[[#Totals],[Prognoositud tulu]],ReklaamidVoldikus[[#Totals],[Prognoositud tulu]],EksponendidJaTarnijad[[#Totals],[Prognoositud tulu]],KaupadeMüük[[#Totals],[Prognoositud tulu]]) -> 1,936.00 € | G4: =SUM(Piletid[[#Totals],[Tegelik tulu]],ReklaamidVoldikus[[#Totals],[Tegelik tulu]],EksponendidJaTarnijad[[#Totals],[Tegelik tulu]],KaupadeMüük[[#Totals],[Tegelik tulu]]) -> 1,831.00 €
A5: Paremal asuvas lahtris kuvatakse osavõtu silt. | B5: OSAVÕTT
A6: Sisestage tabelisse prognoositud ja tegelik külastajate arv koos piletihindadega, alustades parempoosest lahtrist. Osavõtult saadud prognoositud ja tegelik tulu arvutatakse automaatselt. Järgmine juhis on lahtris A11. | B6: Hinnanguline arv | C6: TEGELIK ARV | D6: Tüüp | E6: Hind | F6: Prognoositud tulu | G6: Tegelik tulu
B7: 300 | C7: 278 | D7: Täiskasvanud @ | E7: 5.00 € | F7: =B7*E7 -> 1,500.00 € | G7: =C7*E7 -> 1,390.00 €
B8: 197 | C8: 195 | D8: Lapsed @ | E8: 2.00 € | F8: =B8*E8 -> 394.00 € | G8: =C8*E8 -> 390.00 €
B9: 42 | C9: 51 | D9: Muu @ | E9: 1.00 € | F9: =B9*E9 -> 42.00 € | G9: =C9*E9 -> 51.00 €
B10: Kokku | F10: =SUBTOTAL(109,Piletid[Prognoositud tulu]) -> 1,936.00 € | G10: =SUBTOTAL(109,Piletid[Tegelik tulu]) -> 1,831.00 €
A11: Paremal asuvas lahtris kuvatakse programmi reklaami silt. | B11: PROGRAMMI REKLAAMID
A12: Sisestage tabelisse prognoositud ja tegelik reklaamide arv koos hindadega, alustades parempoosest lahtrist. Prognoositud ja tegelik reklaamitulu arvutatakse automaatselt. Järgmine juhis on lahtris A17. | B12: Hinnanguline arv | C12: TEGELIK ARV | D12: Tüüp | E12: Hind | F12: Prognoositud tulu | G12: Tegelik tulu
B13: 12 | D13: Plank @ | F13: =B13*E13 -> 0.00 € | G13: =C13*E13 -> 0.00 €
C14: 158 | D14: Pool lehekülge @ | F14: =B14*E14 -> 0.00 € | G14: =C14*E14 -> 0.00 €
B15: 4 | D15: Veerand lehekülge @ | F15: =B15*E15 -> 0.00 € | G15: =C15*E15 -> 0.00 €
B16: Kokku | F16: =SUBTOTAL(109,ReklaamidVoldikus[Prognoositud tulu]) -> 0.00 € | G16: =SUBTOTAL(109,ReklaamidVoldikus[Tegelik tulu]) -> 0.00 €
A17: Paremal asuvas lahtris kuvatakse silt Eksponendid või müüjad. | B17: EKSPONENDID/MÜÜJAD
A18: Sisestage tabelisse prognoositud ja tegelik eksponentide arv koos näituseboksi hindadega, alustades parempoosest lahtrist. Prognoositud ja tegelik tulu arvutatakse automaatselt. Järgmine juhis on lahtris A23. | B18: Hinnanguline arv | C18: TEGELIK ARV | D18: Tüüp | E18: Hind | F18: Prognoositud tulu | G18: Tegelik tulu
B19: 23 | D19: Suured näituseboksid @ | F19: =B19*E19 -> 0.00 € | G19: =C19*E19 -> 0.00 €
B20: 354 | D20: Keskmised näituseboksid @ | F20: =B20*E20 -> 0.00 € | G20: =C20*E20 -> 0.00 €
B21: 56 | D21: Väikesed näituseboksid @ | F21: =B21*E21 -> 0.00 € | G21: =C21*E21 -> 0.00 €
B22: Kokku | F22: =SUBTOTAL(109,EksponendidJaTarnijad[Prognoositud tulu]) -> 0.00 € | G22: =SUBTOTAL(109,EksponendidJaTarnijad[Tegelik tulu]) -> 0.00 €
A23: Paremal asuvas lahtris kuvatakse silt Kaupade müük. | B23: KAUPADE MÜÜK
A24: Sisestage tabelisse prognoositud ja tegelik müüdud kaupade arv koos hindadega, alustades parempoosest lahtrist. Prognoositud ja tegelik tulu arvutatakse automaatselt. | B24: Hinnanguline arv | C24: TEGELIK ARV | D24: Tüüp | E24: Hind | F24: Prognoositud tulu | G24: Tegelik tulu
D25: Tooted @ | F25: =B25*E25 -> 0.00 € | G25: =C25*E25 -> 0.00 €
B26: 123 | D26: Tooted @ | F26: =B26*E26 -> 0.00 € | G26: =C26*E26 -> 0.00 €
D27: Tooted @ | F27: =B27*E27 -> 0.00 € | G27: =C27*E27 -> 0.00 €
B28: 13 | D28: Tooted @ | F28: =B28*E28 -> 0.00 € | G28: =C28*E28 -> 0.00 €
B29: Kokku | F29: =SUBTOTAL(109,KaupadeMüük[Prognoositud tulu]) -> 0.00 € | G29: =SUBTOTAL(109,KaupadeMüük[Tegelik tulu]) -> 0.00 €

Sheet Kasumiaruande kokkuvõte
A1: Kasumi ja kahjumi kokkuvõtet ning kogutulu ja kogukulude diagrammi uuendatakse automaatselt sellel töölehel. Paremal asuvas lahtris olevat töölehe pealkirja värskendatakse automaatselt. Lahtris G1 ja G2 on alapealkirjad. Töölehe kasutamise kohta käivad kasulikud juhised leiate selle veeru lahtritest. Järgmine juhis on lahtris A3. | B1: =Kulud!B1 -> Sündmuse eelarve | D1: =Kulud!C1 -> Sündmuse nimi | G1: KASUM
G2: Kahjumiaruande kokkuvõte
A3: Lintdiagramm, mis kujutab prognoositud tulu ja kulu ning tegelike sissetulekute ja väljaminekute võrdlust, asub lahtris E3. | E3: Lintdiagramm, mis kujutab prognoositud ja tegelike sissetulekute ja väljaminekute võrdlust, on selles lahtris.
A4: Paremal asuvast lahtrist algavat kokkuvõtte tabelit värskendatakse automaatselt. Järgmised juhised on toodud lahtris A8. | B4: Kokku | C4: Prognoos | D4: Tegelik
B5: Kogutulu | C5: =Sissetulekud!F10 -> 1,936.00 € | D5: =Sissetulekud!F4 -> 1,936.00 €
B6: Kogukulu | C6: =Kulud!G4 -> 882.00 € | D6: =Kulud!H4 -> 302.00 €
A8: Prognoositud kogukasu või -kahjum arvutatakse automaatselt lahtris C8 ja tegelik kogukasum või -kahjum lahtris D8. | B8: Kogukasum (või -kahjum) | C8: =C5-C6 -> 1,054.00 € | D8: =D5-D6 -> 1,634.00 €
